bitfinex/quotes_SOLUSD_20240714
["timestamp","ask_amount","ask_price","bid_price","bid_amount"]
[1720945155687,0.8661644,145.51,145.5,26.9057]
[1720945156196,0.8661644,145.51,145.5,71.9057]
[1720945156380,0.8661644,145.51,145.5,26.9057]
[1720945156709,0.8661644,145.51,145.5,60.7557]
[1720945157003,0.8661644,145.51,145.5,71.9057]
[1720945157376,6.05298942,145.51,145.47,15.56671675]
[1720945157693,0.8661644,145.51,145.5,11.15]
[1720945158086,6.05350248,145.51,145.45,15.7557]
[1720945158305,1.71846006,145.5,145.48,11.15]
[1720945158486,5.18791785,145.49,145.46,11.15]
[1720945158694,1.71846006,145.5,145.48,11.15]
[1720945158891,5.18775657,145.49,145.45,15.7557]
[1720945159094,1.71846006,145.5,145.48,11.15]
[1720945159289,5.18781563,145.49,145.46,11.15]
[1720945159489,0.8661644,145.51,145.48,11.15]
[1720945159701,5.18781484,145.5,145.49,11.15]
[1720945160096,35.18781484,145.5,145.49,11.15]
[1720945162187,30.0,145.5,145.49,11.15]
[1720945162391,35.18877611,145.5,145.49,11.15]
[1720945162614,35.18877611,145.5,145.46,11.15]
[1720945162799,6.90732265,145.49,145.46,44.6]
[1720945162987,5.18877611,145.48,145.46,44.6]
[1720945163187,1.71854654,145.49,145.46,44.6]
[1720945163797,2.58470841,145.51,145.46,44.6]
[1720945163997,5.18805478,145.5,145.46,44.6]
[1720945164200,2.58470841,145.51,145.46,44.6]
[1720945164201,6.90659811,145.49,145.46,44.6]
[1720945164395,2.58470691,145.51,145.46,44.6]
[1720945164609,5.18876208,145.5,145.46,44.6]
[1720945164923,6.90683648,145.49,145.46,44.6]
[1720945165219,5.18858428,145.48,145.46,44.6]
[1720945165390,2.58470814,145.51,145.41,16.0103]
[1720945165391,1.71854298,145.47,145.41,16.0103]
[1720945165596,1.71879075,145.49,145.46,11.15]
[1720945165794,6.90812664,145.48,145.45,11.15]
[1720945166003,5.18940967,145.47,145.45,11.15]
[1720945166295,11.15,145.5,145.46,11.15]
[1720945166496,5.18923003,145.49,145.46,11.15]
[1720945166793,5.18923003,145.48,145.46,11.15]
[1720945167001,5.18923003,145.47,145.41,16.0103]
[1720945167188,11.15,145.49,145.41,16.0103]
[1720945167386,5.18923003,145.48,145.44,11.15]
[1720945167605,5.18923003,145.48,145.46,11.15]
[1720945167783,5.18923003,145.49,145.46,11.15]
[1720945167987,30.0,145.47,145.46,11.15]
[1720945168228,36.90802358,145.47,145.41,16.0103]
[1720945168394,36.90802358,145.47,145.45,11.15]
[1720945168591,31.71879355,145.47,145.45,11.15]
[1720945169209,30.0,145.47,145.45,11.15]
[1720945169812,5.19011033,145.46,145.45,11.15]
[1720945170013,30.0,145.47,145.45,11.15]
[1720945173401,30.0,145.47,145.41,16.0103]
[1720945173602,5.19020942,145.46,145.43,11.15]
[1720945173914,1.71907838,145.45,145.43,11.15]
[1720945174706,30.0,145.47,145.43,11.15]
[1720945175009,5.1906709,145.46,145.43,11.15]
[1720945175206,1.71907046,145.45,145.42,11.15]
[1720945175415,11.15,145.43,145.35,6.62464125]
[1720945175612,18.06089324,145.42,145.34,16.0103]
[1720945175828,36.34119933,145.41,145.37,11.15]
[1720945176019,1.71962401,145.4,145.34,16.0103]
[1720945176330,1.71962401,145.4,145.37,11.15]
[1720945176827,1.71962401,145.4,145.38,11.15]
[1720945177221,21.7196804,145.42,145.38,11.15]
[1720945177734,21.7196804,145.42,145.39,11.15]
[1720945179553,21.7196804,145.42,145.38,11.15]
[1720945180117,21.7196804,145.42,145.39,11.15]
[1720945180319,31.15,145.44,145.39,11.15]
[1720945180533,11.15,145.43,145.39,11.15]
[1720945180837,21.71958369,145.42,145.38,11.15]
[1720945181220,32.86958369,145.42,145.34,16.0103]
[1720945181422,32.86958369,145.42,145.37,11.15]
[1720945181648,6.1118,145.45,145.4,11.15]
[1720945181948,1.71947588,145.44,145.4,11.15]
[1720945182145,11.15,145.43,145.35,45.0]
[1720945182352,1.71959483,145.42,145.39,11.15]
[1720945182849,1.71959483,145.42,145.38,11.15]
[1720945183045,1.71959483,145.42,145.35,45.0]
[1720945183224,1.71959483,145.42,145.39,11.15]
[1720945183538,1.71959483,145.42,145.35,45.0]
[1720945183746,1.71959483,145.42,145.38,11.15]
[1720945184749,1.71959483,145.42,145.39,11.15]
[1720945185847,1.71959483,145.42,145.35,45.0]
[1720945186051,20.0,145.43,145.39,11.15]
[1720945186229,1.71951602,145.42,145.4,11.15]
[1720945186422,1.71926663,145.42,145.4,11.15]
[1720945186753,1.71926663,145.42,145.39,11.15]
[1720945187052,1.71926663,145.42,145.4,11.15]
[1720945187223,1.71912935,145.45,145.41,56.15]
[1720945187426,1.71912935,145.45,145.42,11.15]
[1720945188354,1.71912935,145.45,145.39,16.2032]
[1720945188549,1.71912935,145.45,145.41,11.15]
[1720945190358,1.71912935,145.45,145.43,11.15]
[1720945191448,1.71912935,145.45,145.39,27.3532]
[1720945191646,1.71912935,145.45,145.39,16.2032]
[1720945191848,1.71912935,145.45,145.42,11.15]
[1720945193270,1.71912935,145.45,145.39,16.2032]
[1720945193432,12.86912935,145.45,145.4,11.15]
[1720945193731,20.0,145.44,145.4,11.15]
[1720945194060,1.71942381,145.43,145.39,16.2032]
[1720945194229,1.71945818,145.42,145.4,11.15]
[1720945194760,1.71945818,145.42,145.41,11.15]
[1720945195258,1.71936397,145.44,145.41,11.15]
[1720945196669,20.0,145.46,145.42,11.15]
[1720945196965,1.71925213,145.45,145.42,11.15]
[1720945198974,1.71925213,145.45,145.39,27.3532]
[1720945199142,1.71925213,145.45,145.43,11.15]
[1720945199650,1.71925213,145.45,145.44,11.15]
[1720945199851,6.91138993,145.45,145.44,11.15]
[1720945200060,26.91138993,145.45,145.44,11.15]
[1720945200266,26.91138993,145.45,145.43,11.15]
[1720945200459,20.0,145.44,145.4,45.0]
[1720945200760,20.0,145.44,145.42,11.15]
[1720945200957,20.0,145.44,145.43,11.15]
[1720945201166,21.71916373,145.46,145.43,11.15]
[1720945201339,6.9112414,145.45,145.43,11.15]
[1720945201537,20.0,145.44,145.43,11.15]
[1720945202573,25.19210363,145.44,145.43,11.15]
[1720945203070,25.19210363,145.44,145.4,45.0]
[1720945203254,20.0,145.44,145.42,11.15]
[1720945203453,20.0,145.46,145.42,11.15]
[1720945203665,5.19213962,145.45,145.42,11.15]
[1720945203866,6.91130076,145.44,145.42,11.15]
[1720945204048,1.71916114,145.44,145.42,11.15]
[1720945204852,1.71916026,145.45,145.42,11.15]
[1720945205055,1.71916026,145.45,145.43,11.15]
[1720945205264,5.19213883,145.44,145.43,11.15]
[1720945205565,25.19213883,145.44,145.43,11.15]
[1720945208568,20.0,145.44,145.43,11.15]
[1720945208765,25.19213859,145.44,145.43,11.15]
[1720945209082,25.19213859,145.44,145.4,45.0]
[1720945209261,6.91130293,145.43,145.42,11.15]
[1720945211495,6.91130293,145.43,145.4,45.0]
[1720945211699,5.19213859,145.42,145.41,11.15]
[1720945212383,5.19209742,145.42,145.41,11.15]
[1720945215283,5.19209766,145.42,145.41,11.15]
[1720945216099,5.19209766,145.42,145.39,16.2032]
[1720945216290,6.91149757,145.41,145.39,16.2032]
[1720945216487,5.19209766,145.4,145.39,16.2032]
[1720945216690,5.19209766,145.42,145.39,27.3532]
[1720945217010,6.91149722,145.42,145.39,27.3532]
[1720945217189,1.71939956,145.42,145.41,11.15]
[1720945217501,6.91143771,145.43,145.41,11.15]
[1720945217808,6.91143371,145.42,145.41,11.15]
[1720945218010,5.19209924,145.42,145.41,11.15]
[1720945218604,5.19162471,145.42,145.41,11.15]
[1720945220588,5.19162471,145.42,145.39,16.2032]
[1720945220786,6.9110172,145.41,145.39,16.2032]
[1720945221004,1.71939235,145.44,145.4,11.15]
[1720945221311,5.19167751,145.43,145.41,11.15]
[1720945221605,6.91101425,145.42,145.41,11.15]
[1720945221809,5.19167751,145.42,145.41,11.15]
[1720945221978,5.19167751,145.43,145.41,11.15]
[1720945222179,1.71933053,145.42,145.41,11.15]
[1720945222397,6.91100804,145.42,145.41,11.15]
[1720945222586,6.91100582,145.42,145.41,11.15]
[1720945224885,5.19167529,145.42,145.41,11.15]
[1720945225379,5.19158012,145.42,145.41,11.15]
[1720945226718,5.19158012,145.42,145.39,16.2032]
[1720945226919,20.0,145.45,145.41,11.15]
[1720945227106,5.19176853,145.44,145.4,11.15]
[1720945227422,5.19176853,145.43,145.4,11.15]
[1720945227614,5.19176853,145.42,145.41,11.15]
[1720945228829,5.1918972,145.42,145.41,11.15]
[1720945229116,5.1918972,145.42,145.35,22.99467971]
[1720945229318,6.91147387,145.41,145.35,16.0579]
[1720945229648,31.15,145.45,145.4,11.15]
[1720945229824,6.91183131,145.44,145.39,11.15]
[1720945230121,25.19236133,145.43,145.35,16.0579]
[1720945230309,6.91191729,145.42,145.41,11.15]
[1720945232119,1.71955596,145.42,145.35,16.0579]
[1720945232422,6.91184775,145.42,145.4,11.15]
[1720945232628,6.91198448,145.41,145.4,11.15]
[1720945232925,36.91198448,145.41,145.4,11.15]
[1720945235026,56.91198448,145.41,145.35,16.0579]
[1720945235328,25.19247927,145.4,145.38,11.15]
[1720945235530,6.91226432,145.39,145.38,11.15]
[1720945235834,6.91226432,145.39,145.36,11.15]
[1720945236030,5.19247927,145.38,145.36,11.15]
[1720945236217,1.71991674,145.37,145.36,11.15]
[1720945236531,5.19247927,145.37,145.36,11.15]
[1720945238905,5.19097859,145.37,145.36,11.15]
[1720945240618,30.0,145.41,145.36,56.15]
[1720945240619,1.71960716,145.4,145.36,56.15]
[1720945240936,5.19127505,145.39,145.36,45.0]
[1720945241128,1.71954174,145.44,145.38,11.15]
[1720945241335,5.19146118,145.43,145.41,11.15]
[1720945241519,6.91088679,145.42,145.41,11.15]
[1720945242141,6.91088679,145.42,145.4,11.15]
[1720945242441,5.19154284,145.41,145.39,11.15]
[1720945242609,6.91116549,145.4,145.39,11.15]
[1720945242813,5.19154284,145.4,145.39,11.15]
[1720945243141,5.19154284,145.4,145.38,11.15]
[1720945243324,5.19154284,145.39,145.38,11.15]
[1720945243914,5.19154284,145.39,145.37,11.15]
[1720945244235,6.9112983,145.38,145.37,11.15]
[1720945244430,5.19154284,145.38,145.37,11.15]
[1720945245338,5.19154284,145.38,145.35,16.0579]
[1720945245518,1.71991631,145.37,145.35,16.0579]
[1720945245718,21.71991631,145.41,145.36,11.15]
[1720945245945,5.19087095,145.4,145.37,11.15]
[1720945246122,6.91060056,145.39,145.37,11.15]
[1720945246457,5.19075028,145.38,145.37,11.15]
[1720945247344,5.19075028,145.38,145.35,16.0579]
[1720945247521,1.71991553,145.37,145.35,16.0579]
[1720945247832,1.71991553,145.37,145.36,11.15]
[1720945248039,1.71989253,145.4,145.36,11.15]
[1720945248225,6.9118268,145.39,145.37,11.15]
[1720945248416,5.19193193,145.38,145.37,11.15]
[1720945249144,5.1916904,145.38,145.37,11.15]
[1720945251540,5.1916904,145.38,145.35,16.0579]
[1720945251841,1.71965861,145.4,145.37,11.15]
[1720945252052,5.19188051,145.39,145.37,11.15]
[1720945252349,6.91165515,145.38,145.37,11.15]
[1720945252524,5.19185827,145.38,145.37,11.15]
[1720945255849,5.19155613,145.38,145.37,11.15]
[1720945256746,1.71965972,145.42,145.37,11.15]
[1720945256944,1.71942457,145.45,145.41,11.15]
[1720945257161,5.1922436,145.44,145.41,11.15]
[1720945257453,6.91155992,145.43,145.41,11.15]
[1720945257619,5.1922436,145.42,145.35,16.0579]
[1720945257819,6.91160805,145.42,145.41,11.15]
[1720945258130,5.1922436,145.42,145.41,11.15]
[1720945258339,5.1922436,145.44,145.41,11.15]
[1720945258538,5.1922436,145.43,145.42,11.15]
[1720945259153,1.7192429,145.44,145.42,11.15]
[1720945259453,5.19224072,145.43,145.42,11.15]
[1720945259753,5.19205048,145.43,145.4,17.76571165]
[1720945259958,1.71916789,145.46,145.42,11.15]
[1720945260131,6.91100566,145.45,145.43,11.15]
[1720945260330,5.19192971,145.44,145.43,11.15]
[1720945261259,5.19192971,145.44,145.4,16.3933]
[1720945261456,6.91133891,145.43,145.39,11.15]
[1720945261629,5.19230691,145.42,145.36,16.3933]
[1720945261829,1.71919738,145.45,145.41,11.15]
[1720945262125,5.19226859,145.44,145.36,16.3933]
[1720945262326,1.71919738,145.45,145.43,11.15]
[1720945262522,5.19197165,145.44,145.41,16.8088673]
[1720945262766,5.19196749,145.43,145.41,16.8088673]
[1720945262925,5.19196749,145.42,145.41,16.8088673]
[1720945263127,5.19196749,145.42,145.41,27.9588673]
[1720945264542,5.19199867,145.47,145.41,27.9588673]
[1720945264857,26.91106576,145.46,145.43,11.15]
[1720945265057,5.19199447,145.45,145.43,11.15]
[1720945265361,6.91104593,145.44,145.43,11.15]
[1720945265532,5.19199447,145.44,145.43,11.15]
[1720945266342,0.8661644,145.51,145.43,73.9357]
[1720945266558,2.58451738,145.51,145.5,11.15]
[1720945266855,32.58451738,145.51,145.5,11.15]
[1720945267257,32.58451738,145.51,145.47,15.4368]
[1720945267442,32.58451738,145.51,145.5,11.15]
[1720945267647,32.58451738,145.51,145.49,11.15]
[1720945267959,2.58451738,145.51,145.49,11.15]
[1720945268260,0.8661644,145.51,145.49,11.15]
[1720945268562,2.58450385,145.51,145.49,11.15]
[1720945269531,0.8661644,145.51,145.49,11.15]
[1720945269731,2.5845031,145.51,145.49,11.15]
[1720945272837,13.7345031,145.51,145.44,1.37466892]
[1720945273156,31.15,145.5,145.46,11.15]
[1720945273365,1.71869852,145.49,145.46,11.15]
[1720945274141,1.71869852,145.49,145.47,11.15]
[1720945274553,1.71858496,145.5,145.47,11.15]
[1720945275358,1.71858496,145.5,145.48,11.15]
[1720945275563,20.0,145.5,145.49,11.15]
[1720945275763,20.0,145.5,145.48,11.15]
[1720945276071,1.71844873,145.49,145.47,11.15]
[1720945276239,1.71844873,145.49,145.46,11.15]
[1720945276858,1.71844873,145.49,145.42,15.4368]
[1720945277068,4.11353543,145.48,145.46,11.15]
[1720945277280,1.7187633,145.47,145.45,11.15]
[1720945277438,1.71880718,145.49,145.45,11.15]
[1720945277639,1.71875871,145.48,145.45,11.15]
[1720945278664,1.71877769,145.49,145.43,0.38549194]
[1720945278873,1.71881956,145.48,145.42,15.82229195]
[1720945279161,20.0,145.49,145.44,11.15]
[1720945279162,12.86881285,145.49,145.44,11.15]
[1720945279350,2.5846791,145.51,145.42,15.4368]
[1720945279552,4.11253789,145.5,145.48,11.15]
[1720945279876,4.11303007,145.49,145.48,11.15]
[1720945280081,1.71845595,145.49,145.47,11.15]
[1720945280383,1.71855824,145.5,145.43,1.37476476]
[1720945280544,1.71855824,145.5,145.47,11.15]
[1720945282764,4.11304877,145.49,145.43,1.37476476]
[1720945283073,1.71875948,145.48,145.45,11.15]
[1720945283650,1.71875948,145.48,145.44,11.15]
[1720945284162,1.71875948,145.48,145.45,11.15]
[1720945284475,12.86875192,145.5,145.45,11.15]
[1720945285164,4.11330665,145.49,145.46,11.15]
[1720945285379,12.0161644,145.51,145.46,11.15]
[1720945285542,25.83102416,145.5,145.47,11.15]
[1720945285737,21.71854161,145.5,145.47,11.15]
[1720945286151,21.71854161,145.5,145.42,15.4368]
[1720945286152,2.58471067,145.51,145.49,11.15]
[1720945286371,0.8661644,145.51,145.5,11.15]
[1720945286780,0.8661644,145.51,145.48,16.4339]
[1720945286781,0.8661644,145.51,145.49,0.73930307]
[1720945286972,0.8661644,145.51,145.5,11.15]
[1720945292258,0.8661644,145.51,145.49,1.37437642]
[1720945292479,0.8661644,145.51,145.5,11.15]
[1720945294191,0.8661644,145.51,145.48,11.15]
[1720945294497,0.8661644,145.51,145.49,11.15]
[1720945295089,0.8661644,145.51,145.5,11.15]
[1720945301984,0.8661644,145.51,145.5,71.1959]
[1720945302195,0.8661644,145.51,145.5,26.1959]
[1720945302788,0.8661644,145.51,145.5,15.0459]
[1720945302997,0.8661644,145.51,145.5,26.1959]
[1720945303680,0.8661644,145.51,145.5,15.0459]
[1720945304003,0.8661644,145.51,145.5,26.1959]
[1720945304720,0.8661644,145.51,145.5,11.15]
[1720945307685,0.8661644,145.51,145.46,15.0459]
[1720945307992,0.8661644,145.51,145.48,11.15]
[1720945308507,0.8661644,145.51,145.49,11.15]
[1720945308699,0.8661644,145.51,145.49,0.39044826]
[1720945308903,0.8661644,145.51,145.5,11.15]
[1720945309781,0.8661644,145.51,145.47,0.39044826]
[1720945309984,0.8661644,145.51,145.49,11.15]
[1720945310910,0.8661644,145.51,145.46,15.0459]
[1720945311088,2.58447444,145.51,145.47,12.42210826]
[1720945313406,2.58447444,145.51,145.47,11.15]
[1720945313609,15.26150991,145.5,145.42,15.0459]
[1720945313819,5.83048211,145.49,145.42,15.0459]
[1720945314002,1.71866159,145.48,145.44,11.15]
[1720945314506,1.71866159,145.48,145.45,11.15]
[1720945315307,4.11293365,145.47,145.45,11.15]
[1720945315509,1.71866159,145.48,145.45,11.15]
[1720945315699,4.11271611,145.47,145.45,11.15]
[1720945315900,1.71866159,145.48,145.45,11.15]
[1720945316099,4.11282252,145.47,145.45,11.15]
[1720945316305,12.86866159,145.48,145.44,11.15]
[1720945316626,5.83192395,145.47,145.44,11.15]
[1720945316916,0.8661644,145.51,145.44,11.15]
[1720945317112,11.15,145.49,145.44,11.15]
[1720945317319,5.83160855,145.48,145.45,11.15]
[1720945317505,4.11292702,145.47,145.45,11.15]
[1720945317693,1.71868153,145.48,145.45,11.15]
[1720945318031,4.11290823,145.47,145.42,15.0459]
[1720945318207,12.86868153,145.48,145.44,11.15]
[1720945318394,4.11290897,145.47,145.44,11.15]
[1720945318598,11.15,145.49,145.44,11.15]
[1720945318901,5.83137514,145.48,145.44,11.15]
[1720945319102,1.718678,145.48,145.44,11.15]
[1720945321604,0.8661644,145.51,145.46,11.15]
[1720945321605,2.58495604,145.51,145.46,11.15]
[1720945321793,4.11217702,145.5,145.47,11.15]
[1720945321996,13.73495604,145.51,145.47,11.15]
[1720945321997,4.11217702,145.49,145.47,11.15]
[1720945322193,13.73495604,145.51,145.47,11.15]
[1720945322391,4.11203213,145.5,145.47,11.15]
[1720945322624,4.11203213,145.49,145.47,11.15]
[1720945322822,13.73495604,145.51,145.47,11.15]
[1720945323141,4.11198975,145.5,145.47,11.15]
[1720945323411,4.11198975,145.49,145.47,11.15]
[1720945323635,4.11198975,145.5,145.47,11.15]
[1720945324620,13.73495604,145.51,145.46,11.15]
[1720945326021,4.11208889,145.5,145.46,11.15]
[1720945326612,13.73495604,145.51,145.46,11.15]
[1720945327021,4.1120887,145.5,145.46,11.15]
[1720945328516,4.1120887,145.5,145.47,11.15]
[1720945328723,4.1120887,145.5,145.47,12.3052006]
[1720945329730,1.71838695,145.49,145.46,11.15]
[1720945329895,1.71838695,145.49,145.45,11.15]
[1720945330299,1.71838695,145.49,145.43,1.15520059]
[1720945330499,12.86838695,145.49,145.44,11.15]
[1720945331218,1.71838695,145.49,145.44,11.15]
[1720945331425,4.11219006,145.48,145.45,1.15531219]
[1720945331613,11.15,145.49,145.45,1.15531219]
[1720945331813,4.11219006,145.48,145.45,12.30531219]
[1720945332141,12.86859644,145.49,145.44,11.15]
[1720945332309,5.83092237,145.48,145.44,11.15]
[1720945332510,1.71870285,145.48,145.44,11.15]
[1720945333319,4.11266831,145.47,145.44,11.15]
[1720945333522,12.86870285,145.48,145.43,11.15]
[1720945333707,5.83164594,145.47,145.43,11.15]
[1720945333904,1.71876585,145.47,145.43,11.15]
[1720945334752,1.71876585,145.47,145.43,12.30826433]
[1720945334940,1.71876585,145.47,145.43,1.15826433]
[1720945335132,4.11306013,145.46,145.42,15.0459]
[1720945335431,4.11342782,145.45,145.42,11.15]
[1720945335725,11.15,145.46,145.41,11.15]
[1720945336312,1.71893695,145.45,145.41,11.15]
[1720945336808,11.15,145.46,145.41,11.15]
[1720945337133,11.15,145.47,145.42,11.15]
[1720945337319,15.26345857,145.46,145.42,11.15]
[1720945337516,1.71898772,145.45,145.42,11.15]
[1720945337721,1.71898772,145.45,145.39,15.2549]
[1720945337921,1.71898772,145.45,145.42,11.15]
[1720945338120,1.71898772,145.45,145.39,15.2549]
[1720945338313,1.71898772,145.45,145.42,11.15]
[1720945338511,1.71900325,145.46,145.42,11.15]
[1720945338737,1.71900226,145.45,145.42,11.15]
[1720945339437,12.86899575,145.46,145.41,11.15]
[1720945339619,1.71905771,145.45,145.41,11.15]
[1720945339817,1.71905771,145.45,145.39,15.2549]
[1720945340025,1.71905771,145.45,145.41,11.15]
[1720945340730,11.15,145.44,145.36,6.6484]
[1720945341028,16.98389004,145.43,145.38,11.15]
[1720945341236,11.15,145.41,145.37,11.15]
[1720945341416,1.71951283,145.4,145.36,11.15]
[1720945342742,12.86948325,145.41,145.36,11.15]
[1720945342916,1.71948325,145.41,145.37,11.15]
[1720945343242,6.5301,145.43,145.38,11.15]
[1720945343458,6.5301,145.43,145.39,11.15]
[1720945343459,20.0,145.42,145.39,11.15]
[1720945343914,6.5301,145.43,145.39,11.15]
[1720945344113,11.15,145.44,145.39,11.15]
[1720945344340,21.71928,145.43,145.39,11.15]
[1720945344649,21.71928,145.43,145.4,11.15]
[1720945345541,1.71928,145.43,145.4,11.15]
[1720945345743,21.71926259,145.44,145.4,11.15]
[1720945346326,21.71926259,145.44,145.41,11.15]
[1720945346535,20.0,145.43,145.41,11.15]
[1720945346737,1.71926259,145.44,145.41,11.15]
[1720945349141,1.71926259,145.44,145.4,11.15]
[1720945349345,12.86926259,145.44,145.39,11.15]
[1720945349532,20.0,145.43,145.39,11.15]
[1720945349751,1.7194238,145.42,145.39,11.15]
[1720945350642,1.7194238,145.42,145.38,11.15]
[1720945351141,21.7194238,145.42,145.38,11.15]
[1720945352148,32.8694238,145.42,145.35,15.2549]
[1720945352322,1.71964352,145.41,145.37,11.15]
[1720945353525,12.86964352,145.41,145.36,11.15]
[1720945356051,12.86964352,145.41,145.35,15.2549]
[1720945356235,20.0,145.4,145.36,11.15]
[1720945356439,1.71981813,145.39,145.36,11.15]
[1720945358051,1.71981813,145.39,145.35,26.4049]
[1720945358353,1.71981813,145.39,145.36,11.15]
[1720945358534,21.71981044,145.4,145.36,11.15]
[1720945358833,1.71981228,145.39,145.36,11.15]
[1720945359755,1.71981228,145.39,145.35,26.4049]
[1720945361440,1.71981228,145.39,145.36,11.15]
[1720945363462,21.71974549,145.4,145.36,12.52579639]
[1720945363659,20.0,145.4,145.36,12.52579639]
[1720945364178,20.0,145.4,145.36,1.37579639]
[1720945364460,20.0,145.4,145.36,12.52579639]
[1720945365940,11.15,145.41,145.36,12.52579639]
[1720945366276,20.0,145.4,145.36,12.52579639]
[1720945366437,1.71967251,145.39,145.36,11.15]
[1720945366634,20.0,145.4,145.36,12.52580351]
[1720945366872,1.71968106,145.39,145.36,12.52580351]
[1720945367048,1.71968637,145.39,145.36,11.15]
[1720945367369,1.71969685,145.45,145.38,11.15]
[1720945367665,4.11518447,145.44,145.41,11.15]
[1720945367868,1.71923997,145.43,145.41,11.15]
[1720945368041,1.71925714,145.44,145.39,11.15]
[1720945368245,15.26532606,145.43,145.39,11.15]
[1720945368440,11.15,145.43,145.39,11.15]
[1720945369157,12.86927265,145.42,145.36,1.37540494]
[1720945369347,12.86927265,145.42,145.37,11.15]
[1720945370163,12.86927265,145.42,145.38,11.15]
[1720945372058,4.11579868,145.41,145.37,11.15]
[1720945372245,12.86927265,145.42,145.37,11.15]
[1720945372566,4.11575183,145.41,145.37,11.15]
[1720945372773,12.86927265,145.42,145.38,11.15]
[1720945373139,1.71944996,145.45,145.39,1.37512113]
[1720945373334,15.2652682,145.44,145.39,11.15]
[1720945373540,36.98453134,145.43,145.38,11.15]
[1720945373851,5.83471231,145.42,145.38,11.15]
[1720945374159,1.71944411,145.42,145.39,11.15]
[1720945376247,1.71944411,145.42,145.38,11.15]
[1720945377567,4.11548038,145.41,145.37,11.15]
[1720945377770,12.86944411,145.42,145.37,11.15]
[1720945377970,4.11551721,145.41,145.37,11.15]
[1720945378176,1.71944411,145.42,145.38,11.15]
[1720945378471,4.11551575,145.41,145.38,11.15]
[1720945378647,1.71944411,145.42,145.38,11.15]
[1720945379071,4.11551575,145.41,145.38,11.15]
[1720945379250,1.71944411,145.42,145.38,11.15]
[1720945379451,4.11548038,145.41,145.38,11.15]
[1720945379671,4.11548038,145.4,145.38,11.15]
[1720945379965,1.71944411,145.42,145.38,11.15]
[1720945380170,4.11548048,145.41,145.38,11.15]
[1720945380377,4.11548048,145.4,145.38,11.15]
[1720945380546,4.11548048,145.41,145.38,11.15]
[1720945380751,4.1155288,145.4,145.38,11.15]
[1720945381045,1.71944411,145.42,145.38,11.15]
[1720945381247,4.11552385,145.41,145.38,11.15]
[1720945381548,4.11552385,145.4,145.38,11.15]
[1720945381747,1.71944411,145.42,145.38,11.15]
[1720945381970,4.11551585,145.41,145.39,11.15]
[1720945382268,1.71933814,145.42,145.39,11.15]
[1720945382474,4.11523221,145.41,145.39,11.15]
[1720945382659,4.11523221,145.4,145.39,11.15]
[1720945383645,4.11523221,145.42,145.39,11.15]
[1720945383844,4.11523221,145.41,145.39,11.15]
[1720945384066,5.8346241,145.42,145.39,11.15]
[1720945384258,4.11523221,145.41,145.39,11.15]
[1720945385074,4.11551585,145.4,145.39,11.15]
[1720945385287,4.11537439,145.4,145.39,11.15]
[1720945388589,1.71939189,145.42,145.39,11.15]
[1720945388880,4.11551658,145.41,145.4,11.15]
[1720945389085,4.11523221,145.41,145.4,11.15]
[1720945389958,4.11523221,145.41,145.4,26.5076]
[1720945390963,4.11523221,145.41,145.4,27.88163142]
[1720945391477,1.7190836,145.45,145.4,27.88163142]
[1720945391662,4.11433424,145.44,145.42,11.15]
[1720945391866,4.11433057,145.43,145.42,11.15]
[1720945392168,4.11433131,145.43,145.42,11.15]
[1720945393559,4.11433131,145.43,145.41,11.15]
[1720945393764,4.11433131,145.42,145.41,11.15]
[1720945393998,4.11433131,145.44,145.4,26.5076]